[Event "EYCC Open U10 2021"]
[Site "Tornelo"]
[Date "2021.10.15"]
[Round "2.5"]
[White "Petroff, Vlad"]
[Black "Ivanov, Andrey A."]
[Result "0-1"]
[ECO "B22"]
[WhiteElo "1415"]
[BlackElo "2180"]
[Annotator "NA"]
[PlyCount "58"]
[EventDate "2021.10.15"]
[EventType "swiss"]
[EventCountry "NET"]
[SourceTitle "playchess.com"]
[Source "ChessBase"]
[SourceQuality "1"]
[TimeControl "5400+30"]

1. e4 {[%emt 0:00:30]} c5 {[%emt 0:00:38]} 2. c3 {[%emt 0:00:06]} d5 {[%emt 0:00:05]} 3. exd5 {[%emt 0:00:04]} Qxd5 {[%emt 0:02:51]} 4. d4 {[%emt 0:00:09]} Nf6 {[%emt 0:00:13]} 5. Nf3 {[%emt 0:00:25]} Nc6 {[%emt 0:00:45]} 6. Be3 {[%emt 0:00:17]} cxd4 {[%emt 0:00:17]} 7. cxd4 {[%emt 0:00:06]} e6 {[%emt 0:00:08]} 8. Nc3 {[%emt 0:00:06]} Qd8 {[%emt 0:00:13]} 9. Be2 {[%emt 0:00:07]} Be7 {[%emt 0:00:22]} 10. O-O {[%emt 0:00:47]} O-O {[%emt 0:00:25]} 11. Rc1 {[%emt 0:01:14]} b6 {[%emt 0:02:13]} 12. Qd2 {[%emt 0:03:01]} Bb7 {[%emt 0:02:48]} 13. Rfd1 {[%emt 0:00:59]} Bb4 {[%emt 0:01:14]} 14. Bg5 {[%emt 0:02:43]} h6 {[%emt 0:01:35]} 15. Bh4 {[%emt 0:00:20]} Be7 {[%emt 0:00:23]} 16. Bxf6 {[%emt 0:11:49]} Bxf6 {[%emt 0:00:09]} 17. d5 {[%emt 0:00:12]} Ne5 {[%emt 0:12:44]} 18. Qc2 {[%emt 0:10:56]} exd5 {[%emt 0:01:55]} 19. Nxe5 {[%emt 0:00:42]} Bxe5 {[%emt 0:00:10]} 20. Bf3 {[%emt 0:00:33]} Rc8 {[%emt 0:06:52]} 21. Qb3 {[%emt 0:02:00]} Qg5 {[%emt 0:07:18]} 22. Rc2 {[%emt 0:03:45]} Qf4 {[%emt 0:01:07]} 23. Kf1 {[%emt 0:04:32]} Qxh2 {[%emt 0:01:02]} 24. g3 {[%emt 0:00:14]} Ba6+ {[%emt 0:00:10]} 25. Ne2 {[%emt 0:00:17]} Bc4 {[%emt 0:01:26]} 26. Qe3 {[%emt 0:00:43]} Rfe8 $19 {[%emt 0:00:58]} 27. Qd2 {[%emt 0:01:06]} d4 {[%emt 0:09:31]} 28. Be4 {[%emt 0:04:08]} Bxg3 {[%emt 0:08:04]} 29. Qxd4 {[%emt 0:01:49]} Rxe4 {[%emt 0:00:26]} 0-1

[Event "EYCC Open U10 2021"]
[Site "Tornelo"]
[Date "2021.10.15"]
[Round "2.6"]
[White "Ochedzan, Filip"]
[Black "Harutyunyan, Arman G."]
[Result "0-1"]
[ECO "B32"]
[WhiteElo "1696"]
[BlackElo "1395"]
[Annotator "NA"]
[PlyCount "72"]
[EventDate "2021.10.15"]
[EventType "swiss"]
[EventCountry "NET"]
[SourceTitle "playchess.com"]
[Source "ChessBase"]
[SourceQuality "1"]
[TimeControl "5400+30"]

1. e4 {[%emt 0:00:30]} c5 {[%emt 0:00:36]} 2. Nf3 {[%emt 0:00:10]} Nc6 {[%emt 0:00:04]} 3. d4 {[%emt 0:00:10]} cxd4 {[%emt 0:00:03]} 4. Nxd4 {[%emt 0:00:06]} e5 {[%emt 0:00:03]} 5. Nb5 {[%emt 0:00:55]} d6 {[%emt 0:00:04]} 6. N5c3 {[%emt 0:06:05]} Nge7 {[%emt 0:00:46]} 7. Be3 {[%emt 0:03:57]} f5 {[%emt 0:05:17]} 8. exf5 {[%emt 0:14:26]} Nxf5 {[%emt 0:00:38]} 9. Nd5 {[%emt 0:01:45]} Be7 {[%emt 0:01:02]} 10. Nbc3 {[%emt 0:01:37]} O-O {[%emt 0:02:29]} 11. Bc4 {[%emt 0:01:20]} Be6 {[%emt 0:01:58]} 12. O-O {[%emt 0:03:53]} Kh8 {[%emt 0:02:02]} 13. a3 {[%emt 0:04:52]} Bg5 {[%emt 0:03:33]} 14. Ba2 {[%emt 0:12:55]} Bxe3 {[%emt 0:03:20]} 15. Nxe3 {[%emt 0:00:53]} Bxa2 {[%emt 0:03:40]} 16. Rxa2 {[%emt 0:00:08]} Ncd4 {[%emt 0:00:53]} 17. Ncd5 {[%emt 0:07:24]} Ne6 {[%emt 0:05:48]} 18. Qg4 {[%emt 0:14:58]} Nxe3 {[%emt 0:02:57]} 19. fxe3 {[%emt 0:00:29]} Rxf1+ {[%emt 0:01:49]} 20. Kxf1 {[%emt 0:00:06]} Qf8+ {[%emt 0:00:03]} 21. Qf3 {[%emt 0:02:20]} Qe8 {[%emt 0:00:36]} 22. Kg1 {[%emt 0:00:30]} Qg6 {[%emt 0:00:47]} 23. Qe2 {[%emt 0:02:19]} Rc8 {[%emt 0:04:51]} 24. Nc3 {[%emt 0:01:11]} d5 {[%emt 0:04:43]} 25. Qf3 {[%emt 0:05:07]} Qxc2 {[%emt 0:01:20]} 26. Qxd5 {[%emt 0:06:29]} Qc1+ {[%emt 0:00:09]} 27. Nd1 {[%emt 0:04:46]} Rd8 {[%emt 0:00:30]} 28. Qxe6 {[%emt 0:00:24]} Rxd1+ {[%emt 0:01:04]} 29. Kf2 {[%emt 0:00:05]} Rf1+ {[%emt 0:00:04]} 30. Kg3 {[%emt 0:00:06]} Qxe3+ {[%emt 0:00:05]} 31. Kh4 {[%emt 0:00:22]} Rf4+ {[%emt 0:01:03]} 32. g4 {[%emt 0:00:15]} Qf2+ {[%emt 0:00:18]} 33. Kg5 {[%emt 0:00:16]} h6+ {[%emt 0:00:08]} 34. Kg6 {[%emt 0:00:16]} Rf6+ {[%emt 0:00:04]} 35. Qxf6 {[%emt 0:00:04]} Qxf6+ {[%emt 0:00:03]} 36. Kh5 {[%emt 0:00:06]} Qg5# {[%emt 0:00:02]} 0-1

[Event "EYCC Open U10 2021"]
[Site "Tornelo"]
[Date "2021.10.15"]
[Round "2.7"]
[White "Gabadadze, Gabriel"]
[Black "Diachek, Andriy"]
[Result "0-1"]
[ECO "C85"]
[WhiteElo "1407"]
[BlackElo "1689"]
[Annotator "NA"]
[PlyCount "132"]
[EventDate "2021.10.15"]
[EventType "swiss"]
[EventCountry "NET"]
[SourceTitle "playchess.com"]
[Source "ChessBase"]
[SourceQuality "1"]
[TimeControl "5400+30"]

1. e4 {[%emt 0:00:30]} e5 {[%emt 0:00:34]} 2. Nf3 {[%emt 0:00:12]} Nc6 {[%emt 0:00:06]} 3. Bb5 {[%emt 0:00:08]} a6 {[%emt 0:00:04]} 4. Ba4 {[%emt 0:00:06]} Nf6 {[%emt 0:00:04]} 5. O-O {[%emt 0:00:08]} Be7 {[%emt 0:00:06]} 6. Bxc6 {[%emt 0:00:08]} dxc6 {[%emt 0:00:10]} 7. d3 {[%emt 0:00:09]} Nd7 {[%emt 0:00:38]} 8. Be3 {[%emt 0:00:25]} O-O {[%emt 0:00:13]} 9. Nbd2 {[%emt 0:00:33]} f6 {[%emt 0:00:22]} 10. a4 {[%emt 0:00:50]} Nc5 {[%emt 0:01:49]} 11. d4 {[%emt 0:00:44]} exd4 {[%emt 0:00:25]} 12. Nxd4 {[%emt 0:00:15]} Bd6 {[%emt 0:04:27]} 13. c3 {[%emt 0:08:38]} Qe8 {[%emt 0:03:17]} 14. Qc2 {[%emt 0:01:51]} Qg6 {[%emt 0:05:48]} 15. f4 {[%emt 0:06:52]} Re8 {[%emt 0:04:50]} 16. e5 {[%emt 0:13:55]} Qxc2 {[%emt 0:03:36]} 17. Nxc2 {[%emt 0:00:18]} fxe5 {[%emt 0:01:59]} 18. fxe5 {[%emt 0:00:31]} Rxe5 {[%emt 0:00:39]} 19. Nc4 {[%emt 0:06:32]} Rh5 {[%emt 0:07:14]} 20. Bf4 {[%emt 0:04:50]} Bxf4 {[%emt 0:06:17]} 21. Rxf4 {[%emt 0:00:12]} Be6 {[%emt 0:00:48]} 22. Raf1 {[%emt 0:04:10]} g5 {[%emt 0:11:00]} 23. Rd4 {[%emt 0:02:49]} Nb3 {[%emt 0:00:54]} 24. Ne5 {[%emt 0:03:00]} Nxd4 {[%emt 0:02:58]} 25. Nxd4 {[%emt 0:00:15]} Bd5 {[%emt 0:11:19]} 26. g4 {[%emt 0:08:18]} Rh3 {[%emt 0:05:29]} 27. c4 {[%emt 0:02:41]} c5 {[%emt 0:13:41]} 28. Nf5 {[%emt 0:01:02]} Be6 {[%emt 0:01:16]} 29. Ng3 {[%emt 0:11:48]} Rf8 {[%emt 0:02:45]} 30. Re1 {[%emt 0:01:59]} Rh4 {[%emt 0:02:12]} 31. Re4 {[%emt 0:02:52]} Rf4 {[%emt 0:02:01]} 32. Rxf4 {[%emt 0:02:01]} gxf4 {[%emt 0:00:12]} 33. Nh5 {[%emt 0:01:02]} f3 {[%emt 0:05:18]} 34. h3 {[%emt 0:01:48]} Rxh3 {[%emt 0:01:52]} 35. Nf4 {[%emt 0:00:47]} Rg3+ {[%emt 0:00:19]} 36. Kf2 {[%emt 0:00:25]} Rxg4 {[%emt 0:00:21]} 37. Kxf3 {[%emt 0:02:27]} Rg5 {[%emt 0:00:39]} 38. Ke4 {[%emt 0:03:42]} Bf5+ {[%emt 0:00:22]} 39. Kf3 {[%emt 0:01:45]} h5 {[%emt 0:00:08]} 40. Nd5 {[%emt 0:01:07]} h4 {[%emt 0:01:31]} 41. Kf4 {[%emt 0:00:45]} h3 {[%emt 0:00:37]} 42. Nf3 {[%emt 0:01:04]} Rg2 {[%emt 0:02:04]} 43. Ne7+ {[%emt 0:01:29]} Kh8 {[%emt 0:00:12]} 44. Kxf5 {[%emt 0:01:04]} h2 {[%emt 0:00:07]} 45. Nxh2 {[%emt 0:00:37]} Rxh2 {[%emt 0:00:08]} 46. Ke6 {[%emt 0:00:10]} Rxb2 {[%emt 0:00:09]} 47. Kd7 {[%emt 0:00:20]} Rb4 {[%emt 0:00:16]} 48. Kxc7 {[%emt 0:00:14]} Rxc4 {[%emt 0:00:19]} 49. Kxb7 {[%emt 0:00:33]} Rxa4 {[%emt 0:00:04]} 50. Kb6 {[%emt 0:00:27]} c4 {[%emt 0:00:04]} 51. Nd5 {[%emt 0:00:13]} Ra3 {[%emt 0:00:07]} 52. Kc5 {[%emt 0:00:44]} c3 {[%emt 0:00:09]} 53. Nb4 {[%emt 0:00:12]} Rb3 {[%emt 0:00:20]} 54. Nc2 {[%emt 0:00:40]} Rb2 {[%emt 0:00:04]} 55. Na1 {[%emt 0:00:17]} c2 {[%emt 0:00:07]} 56. Nxc2 {[%emt 0:00:09]} Rxc2+ {[%emt 0:00:03]} 57. Kb6 {[%emt 0:00:09]} Rb2+ {[%emt 0:00:04]} 58. Kxa6 {[%emt 0:00:07]} Kg7 {[%emt 0:00:04]} 59. Ka5 {[%emt 0:00:11]} Kf6 {[%emt 0:00:04]} 60. Ka4 {[%emt 0:00:08]} Ke5 {[%emt 0:00:03]} 61. Ka3 {[%emt 0:00:09]} Rb8 {[%emt 0:00:03]} 62. Ka2 {[%emt 0:00:13]} Kd4 {[%emt 0:00:05]} 63. Ka1 {[%emt 0:00:10]} Kc3 {[%emt 0:00:03]} 64. Ka2 {[%emt 0:00:09]} Rb7 {[%emt 0:00:09]} 65. Ka1 {[%emt 0:00:09]} Kc2 {[%emt 0:00:02]} 66. Ka2 {[%emt 0:00:10]} Ra7# {[%emt 0:00:05]} 0-1

[Event "EYCC Open U10 2021"]
[Site "Tornelo"]
[Date "2021.10.15"]
[Round "2.8"]
[White "Dumbelovic, Novak"]
[Black "Kocharyan, Vache"]
[Result "1-0"]
[ECO "B65"]
[WhiteElo "1688"]
[BlackElo "1367"]
[Annotator "NA"]
[PlyCount "203"]
[EventDate "2021.10.15"]
[EventType "swiss"]
[EventCountry "NET"]
[SourceTitle "playchess.com"]
[Source "ChessBase"]
[SourceQuality "1"]
[TimeControl "5400+30"]

1. e4 {[%emt 0:00:30]} c5 {[%emt 0:00:35]} 2. Nf3 {[%emt 0:00:26]} Nc6 {[%emt 0:00:03]} 3. d4 {[%emt 0:01:00]} cxd4 {[%emt 0:00:06]} 4. Nxd4 {[%emt 0:00:21]} Nf6 {[%emt 0:00:03]} 5. Nc3 {[%emt 0:00:29]} d6 {[%emt 0:00:07]} 6. Bg5 {[%emt 0:01:20]} e6 {[%emt 0:00:05]} 7. Qd2 {[%emt 0:01:00]} Be7 {[%emt 0:00:09]} 8. O-O-O {[%emt 0:01:11]} O-O {[%emt 0:00:18]} 9. f4 {[%emt 0:02:20]} Nxd4 {[%emt 0:00:22]} 10. Qxd4 {[%emt 0:00:12]} Qa5 {[%emt 0:00:05]} 11. h4 {[%emt 0:01:20]} h6 {[%emt 0:05:13]} 12. Bd3 {[%emt 0:03:11]} b6 {[%emt 0:05:23]} 13. e5 {[%emt 0:01:45]} dxe5 {[%emt 0:23:18]} 14. fxe5 {[%emt 0:00:09]} hxg5 {[%emt 0:00:04]} 15. exf6 {[%emt 0:00:12]} Bxf6 {[%emt 0:10:43]} 16. Qe4 {[%emt 0:00:32]} g6 {[%emt 0:00:39]} 17. Qxa8 {[%emt 0:01:27]} Bxc3 {[%emt 0:06:26]} 18. bxc3 {[%emt 0:01:44]} gxh4 {[%emt 0:00:56]} 19. Qe4 {[%emt 0:01:43]} Qxc3 {[%emt 0:00:06]} 20. Qxh4 {[%emt 0:00:20]} Qg7 {[%emt 0:00:04]} 21. Qh6 {[%emt 0:01:47]} Bb7 {[%emt 0:00:07]} 22. Qxg7+ {[%emt 0:00:24]} Kxg7 {[%emt 0:00:05]} 23. Rh2 {[%emt 0:04:06]} Rc8 {[%emt 0:00:31]} 24. Rdh1 {[%emt 0:01:08]} Rc7 {[%emt 0:01:28]} 25. Rh7+ {[%emt 0:00:50]} Kg8 {[%emt 0:00:07]} 26. R7h2 {[%emt 0:01:00]} Bd5 {[%emt 0:00:16]} 27. Kb2 {[%emt 0:00:35]} Kg7 {[%emt 0:00:20]} 28. Rf1 {[%emt 0:01:54]} Rc5 {[%emt 0:00:39]} 29. g3 {[%emt 0:00:17]} Rc7 {[%emt 0:04:05]} 30. Rf4 {[%emt 0:00:57]} e5 {[%emt 0:01:20]} 31. Rfh4 {[%emt 0:01:39]} Kf6 {[%emt 0:00:16]} 32. c4 {[%emt 0:02:27]} Be6 {[%emt 0:00:34]} 33. Kc3 {[%emt 0:00:42]} Rc5 {[%emt 0:00:25]} 34. Rh8 {[%emt 0:01:27]} e4 {[%emt 0:01:26]} 35. Be2 {[%emt 0:00:27]} Ke5 {[%emt 0:00:16]} 36. R2h4 {[%emt 0:00:40]} a5 {[%emt 0:00:42]} 37. a4 {[%emt 0:00:25]} f5 {[%emt 0:01:55]} 38. R8h6 {[%emt 0:01:11]} Kf6 {[%emt 0:00:15]} 39. Kd4 {[%emt 0:00:16]} Rc6 {[%emt 0:00:21]} 40. g4 {[%emt 0:03:30]} Rd6+ {[%emt 0:02:33]} 41. Ke3 {[%emt 0:00:21]} Kg5 {[%emt 0:01:33]} 42. gxf5 {[%emt 0:00:48]} Bxf5 {[%emt 0:00:09]} 43. R4h5+ {[%emt 0:00:25]} Kf6 {[%emt 0:00:04]} 44. Kf4 {[%emt 0:00:40]} Bd7 {[%emt 0:00:11]} 45. Kxe4 {[%emt 0:00:47]} Bxa4 {[%emt 0:00:17]} 46. Rh2 {[%emt 0:02:07]} Bc2+ {[%emt 0:01:42]} 47. Ke3 {[%emt 0:00:26]} Bf5 {[%emt 0:00:14]} 48. R6h4 {[%emt 0:00:34]} Ke5 {[%emt 0:00:13]} 49. Rh1 {[%emt 0:00:45]} Kf6 {[%emt 0:01:45]} 50. Rd4 {[%emt 0:02:15]} Re6+ {[%emt 0:00:16]} 51. Kf3 {[%emt 0:00:40]} Rc6 {[%emt 0:00:46]} 52. Rhd1 {[%emt 0:00:48]} Ke5 {[%emt 0:01:44]} 53. Rd5+ {[%emt 0:00:49]} Ke6 {[%emt 0:00:25]} 54. Kf4 {[%emt 0:00:11]} Ke7 {[%emt 0:01:03]} 55. Kg5 {[%emt 0:01:29]} Kf7 {[%emt 0:00:40]} 56. Bf3 {[%emt 0:01:28]} Rc7 {[%emt 0:01:32]} 57. Rh1 {[%emt 0:00:51]} Kg7 {[%emt 0:01:10]} 58. Rh4 {[%emt 0:00:30]} Rf7 {[%emt 0:11:15]} 59. Be4 {[%emt 0:01:58]} Be6 {[%emt 0:01:49]} 60. Rd6 {[%emt 0:00:17]} Bf5 {[%emt 0:01:50]} 61. Rxb6 {[%emt 0:00:20]} Bxe4 {[%emt 0:00:05]} 62. Rxe4 {[%emt 0:00:03]} Rf5+ {[%emt 0:00:04]} 63. Kg4 {[%emt 0:00:04]} Kh6 {[%emt 0:00:05]} 64. Rb5 {[%emt 0:00:11]} Rf1 {[%emt 0:00:15]} 65. Rxa5 {[%emt 0:00:06]} Rg1+ {[%emt 0:00:06]} 66. Kh3 {[%emt 0:00:04]} Rc1 {[%emt 0:00:06]} 67. c5 {[%emt 0:00:04]} Rc3+ {[%emt 0:00:07]} 68. Kg4 {[%emt 0:00:04]} Rc1 {[%emt 0:00:04]} 69. Re6 {[%emt 0:00:08]} Rc4+ {[%emt 0:00:05]} 70. Kg3 {[%emt 0:00:05]} Rc3+ {[%emt 0:00:04]} 71. Kf4 {[%emt 0:00:02]} Rc4+ {[%emt 0:00:03]} 72. Ke3 {[%emt 0:00:04]} Rc1 {[%emt 0:00:08]} 73. c6 {[%emt 0:00:03]} Re1+ {[%emt 0:00:05]} 74. Kd4 {[%emt 0:00:26]} Rxe6 {[%emt 0:00:06]} 75. Kd5 {[%emt 0:00:03]} Rf6 {[%emt 0:00:19]} 76. Ra4 {[%emt 0:00:12]} g5 {[%emt 0:01:08]} 77. c7 {[%emt 0:00:06]} Rf8 {[%emt 0:00:04]} 78. Kd6 {[%emt 0:00:06]} Kh5 {[%emt 0:00:16]} 79. Rb4 {[%emt 0:00:16]} Rc8 {[%emt 0:03:48]} 80. Rb8 {[%emt 0:00:26]} Rxc7 {[%emt 0:03:17]} 81. Kxc7 {[%emt 0:00:05]} Kg4 {[%emt 0:01:09]} 82. Kd6 {[%emt 0:00:24]} Kf4 {[%emt 0:01:54]} 83. Kd5 {[%emt 0:02:15]} g4 {[%emt 0:00:13]} 84. Kd4 {[%emt 0:00:09]} Kf3 {[%emt 0:01:07]} 85. Kd3 {[%emt 0:00:07]} g3 {[%emt 0:03:11]} 86. Rf8+ {[%emt 0:00:12]} Kg2 {[%emt 0:00:14]} 87. Ke2 {[%emt 0:00:04]} Kh1 {[%emt 0:00:15]} 88. Kf3 {[%emt 0:00:10]} g2 {[%emt 0:00:08]} 89. Rh8+ {[%emt 0:00:05]} Kg1 {[%emt 0:00:03]} 90. Rg8 {[%emt 0:00:08]} Kh1 {[%emt 0:00:05]} 91. Kf2 {[%emt 0:00:05]} Kh2 {[%emt 0:00:07]} 92. Rxg2+ {[%emt 0:00:04]} Kh3 {[%emt 0:00:05]} 93. Kf3 {[%emt 0:00:02]} Kh4 {[%emt 0:00:03]} 94. Rg3 {[%emt 0:00:03]} Kh5 {[%emt 0:00:03]} 95. Rg4 {[%emt 0:00:03]} Kh6 {[%emt 0:00:05]} 96. Kf4 {[%emt 0:00:02]} Kh5 {[%emt 0:00:10]} 97. Kf5 {[%emt 0:00:03]} Kh6 {[%emt 0:00:03]} 98. Rg5 {[%emt 0:00:02]} Kh7 {[%emt 0:00:03]} 99. Rg6 {[%emt 0:00:06]} Kh8 {[%emt 0:00:03]} 100. Kf6 {[%emt 0:00:02]} Kh7 {[%emt 0:00:03]} 101. Kf7 {[%emt 0:00:03]} Kh8 {[%emt 0:00:05]} 102. Rh6# {[%emt 0:00:03]} 1-0

[Event "EYCC Open U10 2021"]
[Site "Tornelo"]
[Date "2021.10.15"]
[Round "2.9"]
[White "Oikonomopoulos, Filippos"]
[Black "Tatvidze, Davit"]
[Result "1-0"]
[ECO "D00"]
[WhiteElo "1650"]
[BlackElo "1341"]
[Annotator "NA"]
[PlyCount "111"]
[EventDate "2021.10.15"]
[EventType "swiss"]
[EventCountry "NET"]
[SourceTitle "playchess.com"]
[Source "ChessBase"]
[SourceQuality "1"]
[TimeControl "5400+30"]

1. d4 {[%emt 0:00:30]} d5 {[%emt 0:00:41]} 2. Bf4 {[%emt 0:00:05]} Nf6 {[%emt 0:00:10]} 3. e3 {[%emt 0:00:10]} e6 {[%emt 0:00:17]} 4. Nd2 {[%emt 0:00:15]} c5 {[%emt 0:00:10]} 5. c3 {[%emt 0:00:11]} Qb6 {[%emt 0:00:14]} 6. Qb3 {[%emt 0:01:11]} Nc6 {[%emt 0:00:21]} 7. Qxb6 {[%emt 0:02:21]} axb6 {[%emt 0:00:58]} 8. Bb5 {[%emt 0:01:13]} Kd8 {[%emt 0:04:32]} 9. Ngf3 {[%emt 0:05:54]} Bd7 {[%emt 0:00:20]} 10. Nb3 {[%emt 0:12:27]} Be7 {[%emt 0:01:22]} 11. dxc5 {[%emt 0:08:14]} bxc5 {[%emt 0:00:14]} 12. Bxc6 {[%emt 0:00:37]} Bxc6 {[%emt 0:00:12]} 13. Ne5 {[%emt 0:00:15]} Be8 {[%emt 0:00:25]} 14. c4 {[%emt 0:01:12]} Nd7 {[%emt 0:01:32]} 15. O-O-O {[%emt 0:08:37]} Nxe5 {[%emt 0:00:52]} 16. Bxe5 {[%emt 0:00:52]} f6 {[%emt 0:00:14]} 17. Bg3 {[%emt 0:00:29]} Bc6 {[%emt 0:00:36]} 18. cxd5 {[%emt 0:07:17]} exd5 {[%emt 0:00:19]} 19. Kb1 {[%emt 0:00:50]} Kd7 {[%emt 0:00:43]} 20. Nd2 {[%emt 0:02:47]} Ke6 {[%emt 0:01:04]} 21. Rc1 {[%emt 0:01:50]} Bd6 {[%emt 0:01:27]} 22. Nb3 {[%emt 0:01:44]} b6 {[%emt 0:00:13]} 23. Nd4+ {[%emt 0:00:16]} Kd7 {[%emt 0:00:46]} 24. Nxc6 {[%emt 0:00:41]} Kxc6 {[%emt 0:00:17]} 25. Bxd6 {[%emt 0:04:52]} Kxd6 {[%emt 0:00:10]} 26. Rhd1 {[%emt 0:00:20]} Rhd8 {[%emt 0:00:18]} 27. Rc3 {[%emt 0:00:49]} Ra7 {[%emt 0:00:15]} 28. Rxd5+ {[%emt 0:01:14]} Ke7 {[%emt 0:00:18]} 29. Rxd8 {[%emt 0:00:22]} Kxd8 {[%emt 0:00:11]} 30. Rd3+ {[%emt 0:00:17]} Ke7 {[%emt 0:00:07]} 31. a3 {[%emt 0:01:34]} Rc7 {[%emt 0:00:31]} 32. Kc2 {[%emt 0:03:37]} b5 {[%emt 0:00:42]} 33. Rb3 {[%emt 0:00:44]} Rb7 {[%emt 0:00:26]} 34. Kc3 {[%emt 0:01:35]} Kd6 {[%emt 0:00:20]} 35. a4 {[%emt 0:00:14]} b4+ {[%emt 0:00:18]} 36. Kc4 {[%emt 0:00:04]} Kc6 {[%emt 0:00:40]} 37. Rd3 {[%emt 0:00:15]} Ra7 {[%emt 0:01:49]} 38. b3 {[%emt 0:00:11]} Re7 {[%emt 0:00:14]} 39. f3 {[%emt 0:01:28]} f5 {[%emt 0:00:44]} 40. Rd5 {[%emt 0:00:46]} Rxe3 {[%emt 0:00:23]} 41. Rxc5+ {[%emt 0:00:19]} Kb6 {[%emt 0:00:28]} 42. Rxf5 {[%emt 0:00:27]} Re2 {[%emt 0:00:23]} 43. Rg5 {[%emt 0:00:10]} g6 {[%emt 0:00:14]} 44. Kxb4 {[%emt 0:00:08]} Rd2 {[%emt 0:00:17]} 45. Rg4 {[%emt 0:00:52]} Rd5 {[%emt 0:00:27]} 46. g3 {[%emt 0:01:11]} Rd3 {[%emt 0:00:19]} 47. Rf4 {[%emt 0:00:17]} Rd2 {[%emt 0:00:10]} 48. h4 {[%emt 0:00:22]} Rg2 {[%emt 0:00:11]} 49. g4 {[%emt 0:00:12]} Rh2 {[%emt 0:00:15]} 50. Rf6+ {[%emt 0:00:04]} Kc7 {[%emt 0:00:08]} 51. Rf7+ {[%emt 0:00:05]} Kd6 {[%emt 0:00:08]} 52. Rxh7 {[%emt 0:00:05]} Rf2 {[%emt 0:00:14]} 53. Rh6 {[%emt 0:00:35]} Rxf3 {[%emt 0:00:17]} 54. Rxg6+ {[%emt 0:00:21]} Ke7 {[%emt 0:00:14]} 55. a5 {[%emt 0:00:43]} Kd8 {[%emt 0:00:15]} 56. Rc6 {[%emt 0:00:26]} 1-0

[Event "EYCC Open U10 2021"]
[Site "Tornelo"]
[Date "2021.10.15"]
[Round "2.10"]
[White "Williams, Oscar"]
[Black "Feher, Botond"]
[Result "1-0"]
[ECO "B27"]
[WhiteElo "1405"]
[BlackElo "1644"]
[Annotator "NA"]
[PlyCount "107"]
[EventDate "2021.10.15"]
[EventType "swiss"]
[EventCountry "NET"]
[SourceTitle "playchess.com"]
[Source "ChessBase"]
[SourceQuality "1"]
[TimeControl "5400+30"]

1. e4 {[%emt 0:00:30]} c5 {[%emt 0:00:40]} 2. Nf3 {[%emt 0:00:05]} g6 {[%emt 0:00:04]} 3. d4 {[%emt 0:00:05]} cxd4 {[%emt 0:00:05]} 4. Qxd4 {[%emt 0:00:08]} Nf6 {[%emt 0:00:03]} 5. Nc3 {[%emt 0:00:08]} Nc6 {[%emt 0:00:08]} 6. Qa4 {[%emt 0:00:07]} d6 {[%emt 0:00:10]} 7. e5 {[%emt 0:00:09]} dxe5 {[%emt 0:00:04]} 8. Nxe5 {[%emt 0:00:09]} Bg7 {[%emt 0:00:03]} 9. Bb5 {[%emt 0:00:15]} O-O {[%emt 0:00:05]} 10. Nxc6 {[%emt 0:00:11]} bxc6 {[%emt 0:00:07]} 11. Bxc6 {[%emt 0:00:04]} Rb8 {[%emt 0:00:16]} 12. O-O {[%emt 0:00:10]} Qc7 {[%emt 0:01:10]} 13. Re1 {[%emt 0:00:15]} e5 {[%emt 0:06:17]} 14. Nd5 {[%emt 0:05:12]} Nxd5 {[%emt 0:03:17]} 15. Bxd5 {[%emt 0:00:58]} Rd8 {[%emt 0:15:01]} 16. Bb3 {[%emt 0:12:38]} Bf5 {[%emt 0:17:43]} 17. Be3 {[%emt 0:04:46]} Rd7 {[%emt 0:01:42]} 18. Qa6 {[%emt 0:08:12]} Rbd8 {[%emt 0:03:55]} 19. Qe2 {[%emt 0:03:08]} e4 {[%emt 0:02:25]} 20. c3 {[%emt 0:02:15]} Be5 {[%emt 0:01:11]} 21. h3 {[%emt 0:01:29]} Bf4 {[%emt 0:01:27]} 22. Rad1 {[%emt 0:04:02]} Bxe3 {[%emt 0:02:30]} 23. Qxe3 {[%emt 0:02:37]} Rd3 {[%emt 0:02:07]} 24. Rxd3 {[%emt 0:02:16]} Rxd3 {[%emt 0:00:44]} 25. Qe2 {[%emt 0:03:57]} Qd8 {[%emt 0:28:13]} 26. Rd1 {[%emt 0:09:02]} h5 {[%emt 0:01:13]} 27. Bc2 {[%emt 0:02:19]} Rxd1+ {[%emt 0:02:13]} 28. Qxd1 {[%emt 0:00:33]} Qg5 {[%emt 0:00:11]} 29. Kh1 {[%emt 0:05:20]} h4 {[%emt 0:00:47]} 30. Bb3 {[%emt 0:00:41]} Qf4 {[%emt 0:01:52]} 31. Qe1 {[%emt 0:03:56]} Kg7 {[%emt 0:03:20]} 32. Qe3 {[%emt 0:00:43]} Qxe3 {[%emt 0:00:15]} 33. fxe3 {[%emt 0:00:07]} Kf6 {[%emt 0:00:03]} 34. Kg1 {[%emt 0:00:19]} Be6 {[%emt 0:00:08]} 35. Bxe6 {[%emt 0:02:25]} Kxe6 {[%emt 0:00:05]} 36. c4 {[%emt 0:00:05]} Kd6 {[%emt 0:00:12]} 37. b4 {[%emt 0:00:25]} f5 {[%emt 0:00:25]} 38. Kf2 {[%emt 0:00:54]} g5 {[%emt 0:00:06]} 39. c5+ {[%emt 0:05:59]} Kc6 {[%emt 0:00:20]} 40. g3 {[%emt 0:10:18]} a5 {[%emt 0:00:22]} 41. gxh4 {[%emt 0:01:58]} gxh4 {[%emt 0:00:10]} 42. a3 {[%emt 0:00:23]} a4 {[%emt 0:00:05]} 43. Ke2 {[%emt 0:00:22]} Kb5 {[%emt 0:00:05]} 44. Kd2 {[%emt 0:00:22]} Kc6 {[%emt 0:00:08]} 45. Kc2 {[%emt 0:00:17]} Kd5 {[%emt 0:00:28]} 46. Kc3 {[%emt 0:00:09]} Kc6 {[%emt 0:00:15]} 47. Kd4 {[%emt 0:00:23]} Kb5 {[%emt 0:00:09]} 48. Ke5 {[%emt 0:00:22]} Kc4 {[%emt 0:00:36]} 49. c6 {[%emt 0:00:11]} f4 {[%emt 0:00:10]} 50. Kxf4 {[%emt 0:00:26]} Kc3 {[%emt 0:00:15]} 51. c7 {[%emt 0:00:05]} Kb3 {[%emt 0:00:02]} 52. c8=Q {[%emt 0:00:12]} Kxa3 {[%emt 0:00:04]} 53. Qc3+ {[%emt 0:00:19]} Ka2 {[%emt 0:00:03]} 54. Kxe4 {[%emt 0:00:32]} 1-0

[Event "EYCC Open U10 2021"]
[Site "Tornelo"]
[Date "2021.10.15"]
[Round "2.11"]
[White "Katpatal, Akshaj"]
[Black "Golubovic, Erik"]
[Result "0-1"]
[ECO "C55"]
[WhiteElo "1642"]
[BlackElo "1323"]
[Annotator "NA"]
[PlyCount "32"]
[EventDate "2021.10.15"]
[EventType "swiss"]
[EventCountry "NET"]
[SourceTitle "playchess.com"]
[Source "ChessBase"]
[SourceQuality "1"]
[TimeControl "5400+30"]

1. e4 {[%emt 0:00:30]} Nc6 {[%emt 0:00:39]} 2. Nf3 {[%emt 0:00:09]} e5 {[%emt 0:00:09]} 3. Nc3 {[%emt 0:00:07]} Nf6 {[%emt 0:00:54]} 4. Bc4 {[%emt 0:00:09]} Nxe4 {[%emt 0:02:58]} 5. Nxe4 {[%emt 0:00:35]} d5 {[%emt 0:00:14]} 6. Bd3 {[%emt 0:00:17]} dxe4 {[%emt 0:00:54]} 7. Bxe4 {[%emt 0:00:10]} Bd6 {[%emt 0:01:14]} 8. d4 {[%emt 0:00:25]} exd4 {[%emt 0:09:52]} 9. h4 {[%emt 0:00:28]} O-O {[%emt 0:04:28]} 10. Bxh7+ {[%emt 0:00:39]} Kxh7 {[%emt 0:01:41]} 11. Ng5+ {[%emt 0:00:08]} Kg8 {[%emt 0:00:46]} 12. Qh5 {[%emt 0:01:02]} Bf5 {[%emt 0:01:52]} 13. Qf3 {[%emt 0:00:36]} Re8+ {[%emt 0:06:16]} 14. Kd1 {[%emt 0:00:21]} Qd7 {[%emt 0:01:46]} 15. Kd2 {[%emt 0:00:33]} Bb4+ {[%emt 0:01:09]} 16. c3 {[%emt 0:00:08]} dxc3# {[%emt 0:00:10]} 0-1